Workbook

Sheet Instructions
A1: Instructions for Using the FDA Calculator
A2: Warning: This Excel file does not function properly on an Apple computer nor on a PC running Linux.
A3: The user interfaces and VBA code were developed with Excel 2019 on a Windows 10 PC and may not function properly with older versions of Excel or Windows.
A5: Choose the Excel worksheet according to the type of input: "Diff-input FDA" for differential input or "SE-input FDA" for single-ended input.
A6: If the single-ended input is selected, the Excel Solver must be added to the Excel workbook. Click on Excel File/Options/Add-ins to invoke the window shown below:
A8: Select "Excel Add-ins" and click on the Go button shown above.
A9: Select "Solver Add-in" and click OK.
A11: The calculator uses the Excel solver to determine the Rgp and Rt values to match Zin to Rs and to achieve the target gain.
A12: There is no closed-form solution for Rgp and Rt, so a GRG (Generalized Reduced Gradient) search algorithm is used to calculate these values.
A13: If the GRG algorithm does not converge, the error message returned by the algorithm will be displayed in the schematic text box for error messages.
A15: Instructions for the Diff-input FDA and SE-input FDA worksheets
A17: In the schematic area with the gray background, enter desired values in the text boxes, check boxes, and radio buttons with a white background. Select the TI FDA device in the list box.
A18: Some devices have significantly different Iq, headroom, and max. output specs based on the total supply voltage.
A19: In these cases, select the total supply voltage after the "@" in the device name that is closest to the desired supply voltage.
A20: The calculator will interpolate the relevant specs if the desired total supply voltage does not match one of the options.
A22: Click the "Calculate" button to calculate the values in the gray boxes and in the three tables.
A23: If any problems are detected, such as violations of headroom specs or max output current, an error will be displayed and the text boxes with the violating values will be highlighted.
A25: If a resistor tolerance is selected, the nearest standard value for the selected resistor tolerance will be calculated for all of the resistors, including the resistor values entered by the user.
A26: Using the standard resistor values, the calculator will display the actual signal gain and the input impedance, Zin, seen by the source after Rs. If the errors compared to the ideal values are unacceptable, select the "<1% E192" tolerance.
A27: If the actual gain and/or Zin errors are still unacceptable, try different Rf and/or target gain values and recalculate the errors with the standard resistor values.
A29: Note that the ambient temperature entered in the "Temperature" text box, will be used in the Output Noise Analysis table.
A30: The increase temperature of the resistors and the FDA due to power dissipation will not be used in the noise calculations.
A31: In the Output Noise Analysis, the effective noise bandwidth is calculated based on the small-signal bandwidth of the device and the actual signal gain.
A32: Enter a different value to immediately recalculate the noise analysis with the desired effective noise bandwidth.
A34: For any bug reports or suggestions, email Wayne Comeaux at comeaux_wayne@ti.com.

Sheet Documents
A1: Double-click the embedded PDF documents to view them.
A3: See equations 7 - 9 in the document below for the calculation of the dependent parameters for a single-ended input FDA:
A11: See "Noise analysis" section in the document below for the output-noise equations:

Sheet Diff-input FDA
A1: TI Diff-to-Diff FDA Calculator
R2: FDA Power Dissipation Analysis
R3: Circuit Element | S3: Avg. Power (mW) | T3: Iq current is per channel and reduces with output current.
R4: FDA Iq | S4: 123 | T4: Simulate the circuit to determine total power dissipation under operating conditions.
R5: FDA Output Stage | S5: 34.54737312
R6: Feedback Load | S6: 0.125 | T6: Feedback Load Power < 0 indicates that the signal source is delivering
R7: R Load | S7: 1.25 | T7: power to the FDA outputs and/or load through the feedback networks.
R9: FDA Output Currents
R10: Peak Currents | S10: Current (mA)
R11: Iout Max | S11: 4.25
R12: Iout Min | S12: -6.75
R14: Output Noise Analysis
R15: FDA Noise Gain (V/V): | T15: 2.8
R16: Effective Noise Bandwidth (MHz): | T16: 117.75 | U16: Noise
R17: Noise Source | S17: Vflatband (nV/√Hz) | T17: Vrms (µV) | U17: Power (%)
R18: FDA voltage noise | S18: 3.64 | T18: =EoutNoise*SQRT(ENB*1000000)/1000 -> 39.49861263 | U18: =T18^2/total_n^2 -> 0.2214479611
R19: FDA current noise | S19: 0.7071067812 | T19: =IoutNoise*SQRT(ENB*1000000)/1000 -> 7.673004627 | U19: =T19^2/total_n^2 -> 0.008356779113
R20: Rs, Rt, and Rg noise | S20: 5.442810304 | T20: =RgOutNoise*SQRT(ENB*1000000)/1000 -> 59.06138896 | U20: =T20^2/total_n^2 -> 0.4951255242
R21: Rf noise | S21: 4.056831276 | T21: =RfOutNoise*SQRT(ENB*1000000)/1000 -> 44.02176019 | U21: =T21^2/total_n^2 -> 0.2750697357
R22: Total | S22: =SQRT(SUM(S18^2+S19^2+S20^2+S21^2)) -> 7.735093018 | T22: =SQRT(SUM(T18^2+T19^2+T20^2+T21^2)) -> 83.93556121 | U22: =SUM(U18:U21) -> 1
R23: See the Documents worksheet for the equations used to calculate the output noise.

Sheet SE-input FDA
A1: TI SE-to-Diff FDA Calculator
R2: Excel Solver for Rt and Rgp with Terminated Input
R3: Excel Solver Saved Set-up
R4: =MIN($W$7) -> 1.174699563e-13 | S4: =COUNT($U$7:$V$7) -> 2 | T4: =Ind_vars>=10 -> TRUE | U4: =Ind_vars<=100000 -> TRUE | V4: ={32767,32767,0.001,0.01,FALSE,FALSE,TRUE,1,2,1,0.0001,TRUE} -> 32767 | W4: ={0,0,1,1000,0,TRUE,FALSE,0.075,0,0,FALSE,30} -> 0
R5: User Inputs | U5: Independent Vars
R6: Rs | S6: Rf | T6: Target Gain | U6: Rt | V6: Rgp | W6: Cost Function
R7: 49.9 | S7: 499 | T7: 2 | U7: 57.68136013 | V7: 240.7917262 | W7: =((Zin-Rs)/Rs)^2 + ((ActualGain-G)/G)^2 -> 1.174699563e-13
R8: Dependent Parameters
R9: Rs||Rt | S9: β+ | T9: β- | U9: Za | V9: Zin | W9: Actual Gain
R10: =1/(1/Rs+1/Rt) -> 26.75463358 | S10: =Rg/(Rf+Rg) -> 0.3254858329 | T10: =(Rg+RsPRt)/(Rf+Rg+RsPRt) -> 0.3490282829 | U10: =(Rg+Rf)*(Bp+Bn)/(Bn+1) -> 369.895849 | V10: =1/(1/Za + 1/Rt) -> 49.89998349 | W10: =2*(Rf/(Rg+RsPRt))*(Rt/(Rs+Rt)) -> 1.999999821
R12: FDA Power Dissipation Analysis
R13: Circuit Element | S13: Avg. Power (mW) | T13: Iq current is per channel and reduces with output current.
R14: FDA Iq | S14: 123 | T14: Simulate the circuit to determine total power dissipation under operating conditions.
R15: FDA Output Stage | S15: 157.7902151
R16: Feedback Load | S16: 7.31401495 | T16: Feedback Load Power < 0 indicates that the signal source and/or Vinn
R17: R Load | S17: 17.58326496 | T17: is delivering power to the FDA and/or load through the feedback networks.
R19: FDA Output Currents
R20: Peak Currents | S20: Current (mA)
R21: Iout Max | S21: 30.514
R22: Iout Min | S22: -26.95
R24: Output Noise Analysis
R25: FDA Noise Gain (V/V): | T25: 2.868913858
R26: Effective Noise Bandwidth (MHz): | T26: 118.4012066 | U26: Noise
R27: Noise Source | S27: Vflatband (nV/√Hz) | T27: Vrms (µV) | U27: Power (%)
R28: FDA voltage noise | S28: 3.729588015 | T28: =EoutNoise*SQRT(ENB*1000000)/1000 -> 40.58251191 | U28: =T28^2/total_n^2 -> 0.2260671053
R29: FDA current noise | S29: 0.7056925676 | T29: =IoutNoise*SQRT(ENB*1000000)/1000 -> 7.678804445 | U29: =T29^2/total_n^2 -> 0.00809369322
R30: Rs, Rt, and Rg noise | S30: 5.5404732 | T30: =RgOutNoise*SQRT(ENB*1000000)/1000 -> 60.28717346 | U30: =T30^2/total_n^2 -> 0.4988952501
R31: Rf noise | S31: 4.052772414 | T31: =RfOutNoise*SQRT(ENB*1000000)/1000 -> 44.09915628 | U31: =T31^2/total_n^2 -> 0.2669439514
R32: Total | S32: =SQRT(SUM(S28^2+S29^2+S30^2+S31^2)) -> 7.844082883 | T32: =SQRT(SUM(T28^2+T29^2+T30^2+T31^2)) -> 85.35328453 | U32: =SUM(U28:U31) -> 1
R33: See the Documents worksheet for the equations used to calculate the output noise.

Sheet Solver Return Codes (hidden)
A1: Return Value | B1: Message
A2: 0 | B2: Solver found a solution. All constraints and optimality conditions are satisfied.
A3: 1 | B3: Solver has converged to the current solution. All constraints are satisfied.
A4: 2 | B4: Solver cannot improve the current solution. All constraints are satisfied.
A5: 3 | B5: Stop chosen when the maximum iteration limit was reached.
A6: 4 | B6: The Objective Cell values do not converge.
A7: 5 | B7: Solver could not find a feasible solution.
A8: 6 | B8: Solver stopped at user's request.
A9: 7 | B9: The linearity conditions required by this LP Solver are not satisfied.
A10: 8 | B10: The problem is too large for Solver to handle.
A11: 9 | B11: Solver encountered an error value in a target or constraint cell.
A12: 10 | B12: Stop chosen when the maximum time limit was reached.
A13: 11 | B13: There is not enough memory available to solve the problem.
A14: 12 | B14: Unused error code
A15: 13 | B15: Error in model. Please verify that all cells and constraints are valid.
A16: 14 | B16: Solver found an integer solution within tolerance. All constraints are satisfied.
A17: 15 | B17: Stop chosen when the maximum number of feasible [integer] solutions was reached.
A18: 16 | B18: Stop chosen when the maximum number of feasible [integer] subproblems was reached.
A19: 17 | B19: Solver converged in probability to a global solution.
A20: 18 | B20: All variables must have both upper and lower bounds.
A21: 19 | B21: Variable bounds conflict in binary or all different constraint.
A22: 20 | B22: Lower and upper bounds on variables allow no feasible solution.

Sheet Data
C2: Power Supply | F2: Speed | K2: Noise | M2: Precision | O2: Headroom at max supply in spec tables
A3: Device | B3: Number of channels | C3: Iq per channel (Typ) (mA) | D3: Total supply voltage (Min) (+5V=5, +/-5V=10) | E3: Total supply voltage (Max) (+5V=5, +/-5V=10) | F3: Acl, min spec gain (V/V) | G3: LSBW @ Acl (MHz) | H3: SSBW @ Acl (MHz) | I3: GBW (Typ) (MHz) | J3: Slew rate (Typ) (V/us) | K3: Vn at flatband (Typ) (nV/rtHz) | L3: Ib noise at flatband (Typ) (pA/rtHz) | M3: Vos (25 C) (Max) (mV) | N3: Ib (25 C) (Max) (nA) | O3: Input Neg Headroom (V) | P3: Input Pos Headroom (V) | Q3: Vocm Input Neg Headroom (V) | R3: Vocm Input Pos Headroom (V) | S3: Output Neg Headroom (V) | T3: Output Pos Headroom (V) | U3: Output current (Typ) (mA) | V3: Operating temperature range (C) | W3: Data Sheet URL | X3: Architecture | Y3: Package Group | Z3: Description
A4: LMH3401 | B4: 1 | C4: 55 | D4: 3.15 | E4: 5 | F4: 6.3 | G4: 4000 | H4: 7000 | I4: 8000 | J4: 18000 | K4: 1.4 | L4: 0 | M4: 3.2 | N4: 0 | O4: 0.2 | P4: 1.3 | Q4: 2 | R4: 2 | S4: 1.3 | T4: 1.3 | U4: 50 | V4: -40 to 85 | W4: https://www.ti.com/product/LMH3401 | X4: Fully Differential ADC Driver, Fixed Gain/Buffer, Bipolar | Y4: UQFN|14 | Z4: 7-GHz, Ultra-Wideband, Fully Differential Amplifier
A5: LMH5401 | B5: 1 | C5: 55 | D5: 3.15 | E5: 5.25 | F5: 2 | G5: 4800 | H5: 6200 | I5: 8000 | J5: 17500 | K5: 1.25 | L5: 3.5 | M5: 5 | N5: 150000 | O5: 0.41 | P5: 1.41 | Q5: 2 | R5: 2 | S5: 1.3 | T5: 1.3 | U5: 50 | V5: -40 to 85 | W5: https://www.ti.com/product/LMH5401 | X5: Fully Differential ADC Driver, Bipolar | Y5: UQFN|14 | Z5: 8-GHz Ultra wideband fully differential amplifier
A6: LMH6550 | B6: 1 | C6: 20 | D6: 4.5 | E6: 12 | F6: 1 | G6: 380 | H6: 400 | I6: 400 | J6: 3000 | K6: 6 | L6: 1.5 | M6: 5 | N6: 16 | O6: 0.4 | P6: 1.9 | Q6: 1.31 | R6: 1.31 | S6: 1.31 | T6: 1.31 | U6: 75 | V6: -40 to 85 | W6: https://www.ti.com/product/LMH6550 | X6: Fully Differential ADC Driver, Bipolar | Y6: SOIC|8, VSSOP|8 | Z6: 400MHz, Differential, High Speed Op Amps
A7: LMH6551 | B7: 1 | C7: 12.5 | D7: 3 | E7: 12 | F7: 1 | G7: 340 | H7: 370 | I7: 370 | J7: 2400 | K7: 6 | L7: 1.5 | M7: 5 | N7: 4 | O7: 0.4 | P7: 1.9 | Q7: 1.31 | R7: 1.31 | S7: 1.31 | T7: 1.31 | U7: 65 | V7: -40 to 85 | W7: https://www.ti.com/product/LMH6551 | X7: Fully Differential ADC Driver, Bipolar | Y7: SOIC|8, VSSOP|8 | Z7: 370MHz, Differential, High Speed Op Amp
A8: LMH6552 | B8: 1 | C8: 19 | D8: 4.5 | E8: 12 | F8: 1 | G8: 1250 | H8: 1500 | I8: 1500 | J8: 3800 | K8: 1.1 | L8: 19.5 | M8: 16.5 | N8: 110000 | O8: 1.5 | P8: 1.5 | Q8: 1.3 | R8: 1.3 | S8: 1.3 | T8: 1.3 | U8: 80 | V8: -40 to 85 | W8: https://www.ti.com/product/LMH6552 | X8: Fully Differential ADC Driver, Current FB, Bipolar | Y8: SOIC|8, WSON|8 | Z8: 1.5 GHz Fully Differential Amplifier
A9: LMH6553 | B9: 1 | C9: 29 | D9: 4.5 | E9: 12 | F9: 1 | G9: 670 | H9: 900 | I9: 900 | J9: 2300 | K9: 1.2 | L9: 13.6 | M9: 0 | N9: 95000 | O9: 1.7 | P9: 1.7 | Q9: 1.36 | R9: 1.36 | S9: 1.3 | T9: 1.3 | U9: 120 | V9: -40 to 125 | W9: https://www.ti.com/product/LMH6553 | X9: Fully Differential ADC Driver, Current FB | Y9: SO PowerPAD|8, WSON|8 | Z9: 900 MHz Fully Differential Amplifier with Output Limiting Clamp
A10: LMH6554 | B10: 1 | C10: 52 | D10: 4.7 | E10: 5.25 | F10: 1 | G10: 1800 | H10: 2800 | I10: 2500 | J10: 6200 | K10: 0.9 | L10: 11 | M10: 3 | N10: 75000 | O10: 1.25 | P10: 1.25 | Q10: 1.32 | R10: 1.32 | S10: 1.15 | T10: 1.15 | U10: 150 | V10: -40 to 125 | W10: https://www.ti.com/product/LMH6554 | X10: Fully Differential ADC Driver, Current FB, Bipolar | Y10: UQFN|14 | Z10: 2.8 GHz Ultra Linear Fully Differential Amplifier
A11: LMP8350 | B11: 1 | C11: 18 | D11: 5 | E11: 12 | F11: 1 | G11: 118 | H11: 118 | I11: 118 | J11: 507 | K11: 4.6 | L11: 1.7 | M11: 4 | N11: 2000 | O11: 1.2 | P11: 1.2 | Q11: 1.8 | R11: 1.8 | S11: 0.86 | T11: 0.86 | U11: 36 | V11: -40 to 85 | W11: https://www.ti.com/product/LMP8350 | X11: Fully Differential ADC Driver, Bipolar | Y11: SOIC|8 | Z11: Ultra Low Distortion Fully Differential Precision ADC Driver with Selectable Power Modes
A12: OPA1637@5V | B12: 1 | C12: 0.95 | D12: 3 | E12: 25 | F12: 1 | G12: 2.5 | H12: 7 | I12: 9.2 | J12: 15 | K12: 3.7 | L12: 0.3 | M12: 0.2 | N12: 2 | O12: 1 | P12: 1 | Q12: 1 | R12: 1 | S12: 0.1 | T12: 0.1 | U12: 31 | V12: -40 to 125 | W12: https://www.ti.com/product/OPA1637 | X12: Bipolar | Y12: VSSOP|8 | Z12: High-fidelity, high-voltage (36-V), low-noise (3.7-nV/rtHz) Burr-Brown™ audio fully-differential amp
A13: OPA1637@36V | B13: 1 | C13: 0.95 | D13: 15 | E13: 36 | F13: 1 | G13: 2.5 | H13: 7 | I13: 9.2 | J13: 15 | K13: 3.7 | L13: 0.3 | M13: 0.2 | N13: 2 | O13: 1 | P13: 1 | Q13: 2 | R13: 2 | S13: 0.23 | T13: 0.23 | U13: 31 | V13: -40 to 125 | W13: https://www.ti.com/product/OPA1637 | X13: Bipolar | Y13: VSSOP|8 | Z13: High-fidelity, high-voltage (36-V), low-noise (3.7-nV/rtHz) Burr-Brown™ audio fully-differential amp
A14: OPA862 | B14: 1 | C14: 3.1 | D14: 3 | E14: 12.6 | F14: 2 | G14: 42 | H14: 44 | I14: 400 | J14: 140 | K14: 2.3 | L14: 0.9 | M14: 0.325 | N14: 3100 | O14: 0.5 | P14: 1.1 | Q14: 1.3 | R14: 1.1 | S14: 0.25 | T14: 0.25 | U14: 60 | V14: -40 to 125 | W14: https://www.ti.com/product/OPA862 | X14: Differential Amplifier, High Input Impedance, Bipolar | Y14: SOIC|8, WSON|8 | Z14: 12.6V, Low-noise, single-ended-to-differential, high input impedance amplifier
A15: THP210@5V | B15: 1 | C15: 0.95 | D15: 3 | E15: 25 | F15: 1 | G15: 2.4 | H15: 7 | I15: 9.2 | J15: 15 | K15: 3.7 | L15: 0.3 | M15: 0.04 | N15: 2 | O15: 1 | P15: 1 | Q15: 1 | R15: 1 | S15: 1 | T15: 0.1 | U15: 31 | V15: -40 to 125 | W15: https://www.ti.com/product/THP210 | X15: Bipolar | Y15: SOIC|8, VSSOP|8 | Z15: High precision (40-μV, 0.1μV/C), high-voltage (36-V), low-noise (3.7-nV/√Hz), fully-differential amp
A16: THP210@36V | B16: 1 | C16: 0.95 | D16: 15 | E16: 36 | F16: 1 | G16: 2.4 | H16: 7 | I16: 9.2 | J16: 15 | K16: 3.7 | L16: 0.3 | M16: 0.04 | N16: 2 | O16: 1 | P16: 1 | Q16: 2 | R16: 2 | S16: 0.23 | T16: 0.23 | U16: 31 | V16: -40 to 125 | W16: https://www.ti.com/product/THP210 | X16: Bipolar | Y16: SOIC|8, VSSOP|8 | Z16: High precision (40-μV, 0.1μV/C), high-voltage (36-V), low-noise (3.7-nV/√Hz), fully-differential amp
A17: THS4120 | B17: 1 | C17: 11 | D17: 3 | E17: 3.5 | F17: 1 | G17: 100 | H17: 100 | I17: 100 | J17: 55 | K17: 5.4 | L17: 0.001 | M17: 8 | N17: 0.0012 | O17: 0.65 | P17: 0.1 | Q17: 0 | R17: 1.65 | S17: 0.25 | T17: 0.25 | U17: 25 | V17: -40 to 85, 0 to 70 | W17: https://www.ti.com/product/THS4120 | X17: Fully Differential ADC Driver, High Input Impedance | Y17: HVSSOP|8, SOIC|8, VSSOP|8 | Z17: 3.3 V, 100 MHz, 43 V/us, Fully Differential CMOS Amplifier w/Shutdown
A18: THS4121 | B18: 1 | C18: 11 | D18: 3 | E18: 3.5 | F18: 1 | G18: 100 | H18: 100 | I18: 100 | J18: 55 | K18: 5.4 | L18: 0.001 | M18: 8 | N18: 0.0012 | O18: 0.65 | P18: 0.1 | Q18: 0 | R18: 1.65 | S18: 0.25 | T18: 0.25 | U18: 25 | V18: -40 to 85, 0 to 70 | W18: https://www.ti.com/product/THS4121 | X18: Fully Differential ADC Driver, High Input Impedance | Y18: HVSSOP|8, SOIC|8, VSSOP|8 | Z18: 3.3 V, 100 MHz, 43 V/us, Fully Differential CMOS Amplifier
A19: THS4130@5V | B19: 1 | C19: 12.3 | D19: 4 | E19: 10 | F19: 1 | G19: 60 | H19: 150 | I19: 170 | J19: 52 | K19: 1.3 | L19: 1 | M19: 2 | N19: 6 | O19: 1.23 | P19: 0.7 | Q19: 1 | R19: 1 | S19: 1.2 | T19: 1.2 | U19: 45 | V19: -40 to 85, 0 to 70 | W19: https://www.ti.com/product/THS4130 | X19: Fully Differential ADC Driver, Bipolar | Y19: HVSSOP|8, SOIC|8, VSSOP|8 | Z19: 150MHz, Fully Differential Input/Output Low Noise Amplifier With Shutdown
A20: THS4130@10V | B20: 1 | C20: 12.3 | D20: 5 | E20: 25 | F20: 1 | G20: 60 | H20: 150 | I20: 170 | J20: 52 | K20: 1.3 | L20: 1 | M20: 2 | N20: 6 | O20: 1.23 | P20: 0.7 | Q20: 1 | R20: 2 | S20: 1.3 | T20: 1.3 | U20: 55 | V20: -40 to 85, 0 to 70 | W20: https://www.ti.com/product/THS4130 | X20: Fully Differential ADC Driver, Bipolar | Y20: HVSSOP|8, SOIC|8, VSSOP|8 | Z20: 150MHz, Fully Differential Input/Output Low Noise Amplifier With Shutdown
A21: THS4130@30V | B21: 1 | C21: 15 | D21: 15 | E21: 33 | F21: 1 | G21: 75 | H21: 150 | I21: 170 | J21: 52 | K21: 1.3 | L21: 1 | M21: 2 | N21: 6 | O21: 1.23 | P21: 0.7 | Q21: 3 | R21: 3 | S21: 4.5 | T21: 4.5 | U21: 85 | V21: -40 to 85, 0 to 70 | W21: https://www.ti.com/product/THS4130 | X21: Fully Differential ADC Driver, Bipolar | Y21: HVSSOP|8, SOIC|8, VSSOP|8 | Z21: 150MHz, Fully Differential Input/Output Low Noise Amplifier With Shutdown
A22: THS4131@5V | B22: 1 | C22: 12.3 | D22: 4 | E22: 10 | F22: 1 | G22: 60 | H22: 150 | I22: 170 | J22: 52 | K22: 1.3 | L22: 1 | M22: 2 | N22: 6 | O22: 1.23 | P22: 0.7 | Q22: 1 | R22: 1 | S22: 1.2 | T22: 1.2 | U22: 45 | V22: -40 to 85, 0 to 70 | W22: https://www.ti.com/product/THS4131 | X22: Fully Differential ADC Driver, Bipolar | Y22: HVSSOP|8, SOIC|8, VSSOP|8 | Z22: Fully Differential Input/Output Low Noise Amplifier
A23: THS4131@10V | B23: 1 | C23: 12.3 | D23: 5 | E23: 25 | F23: 1 | G23: 60 | H23: 150 | I23: 170 | J23: 52 | K23: 1.3 | L23: 1 | M23: 2 | N23: 6 | O23: 1.23 | P23: 0.7 | Q23: 1 | R23: 2 | S23: 1.3 | T23: 1.3 | U23: 55 | V23: -40 to 85, 0 to 70 | W23: https://www.ti.com/product/THS4131 | X23: Fully Differential ADC Driver, Bipolar | Y23: HVSSOP|8, SOIC|8, VSSOP|8 | Z23: Fully Differential Input/Output Low Noise Amplifier
A24: THS4131@30V | B24: 1 | C24: 15 | D24: 15 | E24: 33 | F24: 1 | G24: 75 | H24: 150 | I24: 170 | J24: 52 | K24: 1.3 | L24: 1 | M24: 2 | N24: 6 | O24: 1.23 | P24: 0.7 | Q24: 3 | R24: 3 | S24: 4.5 | T24: 4.5 | U24: 85 | V24: -40 to 85, 0 to 70 | W24: https://www.ti.com/product/THS4131 | X24: Fully Differential ADC Driver, Bipolar | Y24: HVSSOP|8, SOIC|8, VSSOP|8 | Z24: Fully Differential Input/Output Low Noise Amplifier
A25: THS4140@5V | B25: 1 | C25: 13.2 | D25: 4 | E25: 10 | F25: 1 | G25: 150 | H25: 160 | I25: 170 | J25: 450 | K25: 6.5 | L25: 1.25 | M25: 7 | N25: 15000 | O25: 1.23 | P25: 0.7 | Q25: 1 | R25: 1 | S25: 1.2 | T25: 1.2 | U25: 45 | V25: -40 to 85, 0 to 70 | W25: https://www.ti.com/product/THS4140 | X25: Fully Differential ADC Driver, Bipolar | Y25: HVSSOP|8, SOIC|8, VSSOP|8 | Z25: 160MHz, Fully Differential Input/Output High Slew Rate Amplifier With Shutdown
A26: THS4140@10V | B26: 1 | C26: 13.2 | D26: 5 | E26: 25 | F26: 1 | G26: 150 | H26: 160 | I26: 170 | J26: 450 | K26: 6.5 | L26: 1.25 | M26: 7 | N26: 15000 | O26: 1.23 | P26: 0.7 | Q26: 2 | R26: 2 | S26: 1.3 | T26: 1.3 | U26: 60 | V26: -40 to 85, 0 to 70 | W26: https://www.ti.com/product/THS4140 | X26: Fully Differential ADC Driver, Bipolar | Y26: HVSSOP|8, SOIC|8, VSSOP|8 | Z26: 160MHz, Fully Differential Input/Output High Slew Rate Amplifier With Shutdown
A27: THS4140@30V | B27: 1 | C27: 15 | D27: 15 | E27: 33 | F27: 1 | G27: 150 | H27: 160 | I27: 170 | J27: 450 | K27: 6.5 | L27: 1.25 | M27: 7 | N27: 15000 | O27: 1.23 | P27: 0.7 | Q27: 3 | R27: 3 | S27: 3 | T27: 3 | U27: 85 | V27: -40 to 85, 0 to 70 | W27: https://www.ti.com/product/THS4140 | X27: Fully Differential ADC Driver, Bipolar | Y27: HVSSOP|8, SOIC|8, VSSOP|8 | Z27: 160MHz, Fully Differential Input/Output High Slew Rate Amplifier With Shutdown
A28: THS4141@5V | B28: 1 | C28: 13.2 | D28: 4 | E28: 10 | F28: 1 | G28: 150 | H28: 160 | I28: 170 | J28: 450 | K28: 6.5 | L28: 1.25 | M28: 7 | N28: 15000 | O28: 1.23 | P28: 0.7 | Q28: 1 | R28: 1 | S28: 1.2 | T28: 1.2 | U28: 45 | V28: 0 to 70, -40 to 85 | W28: https://www.ti.com/product/THS4141 | X28: Fully Differential ADC Driver, Bipolar | Y28: HVSSOP|8, SOIC|8, VSSOP|8 | Z28: 160MHz, Fully Differential Input/Output High Slew Rate Amplifier
A29: THS4141@10V | B29: 1 | C29: 13.2 | D29: 5 | E29: 25 | F29: 1 | G29: 150 | H29: 160 | I29: 170 | J29: 450 | K29: 6.5 | L29: 1.25 | M29: 7 | N29: 15000 | O29: 1.23 | P29: 0.7 | Q29: 2 | R29: 2 | S29: 1.3 | T29: 1.3 | U29: 60 | V29: 0 to 70, -40 to 85 | W29: https://www.ti.com/product/THS4141 | X29: Fully Differential ADC Driver, Bipolar | Y29: HVSSOP|8, SOIC|8, VSSOP|8 | Z29: 160MHz, Fully Differential Input/Output High Slew Rate Amplifier
A30: THS4141@30V | B30: 1 | C30: 15 | D30: 15 | E30: 33 | F30: 1 | G30: 150 | H30: 160 | I30: 170 | J30: 450 | K30: 6.5 | L30: 1.25 | M30: 7 | N30: 15000 | O30: 1.23 | P30: 0.7 | Q30: 3 | R30: 3 | S30: 3 | T30: 3 | U30: 85 | V30: 0 to 70, -40 to 85 | W30: https://www.ti.com/product/THS4141 | X30: Fully Differential ADC Driver, Bipolar | Y30: HVSSOP|8, SOIC|8, VSSOP|8 | Z30: 160MHz, Fully Differential Input/Output High Slew Rate Amplifier
A31: THS4150@5V | B31: 1 | C31: 15.8 | D31: 4 | E31: 10 | F31: 1 | G31: 150 | H31: 150 | I31: 150 | J31: 650 | K31: 7.6 | L31: 1.78 | M31: 7 | N31: 15000 | O31: 1.5 | P31: 1.5 | Q31: 1 | R31: 1 | S31: 1.2 | T31: 1.2 | U31: 45 | V31: -40 to 85, 0 to 70 | W31: https://www.ti.com/product/THS4150 | X31: Fully Differential ADC Driver, Bipolar | Y31: HVSSOP|8, SOIC|8 | Z31: 150MHz, Fully Differential Input/Output High Slew Rate Amplifier With Shutdown
A32: THS4150@10V | B32: 1 | C32: 15.8 | D32: 5 | E32: 25 | F32: 1 | G32: 150 | H32: 150 | I32: 150 | J32: 650 | K32: 7.6 | L32: 1.78 | M32: 7 | N32: 15000 | O32: 1.5 | P32: 1.5 | Q32: 2 | R32: 2 | S32: 1.3 | T32: 1.3 | U32: 60 | V32: -40 to 85, 0 to 70 | W32: https://www.ti.com/product/THS4150 | X32: Fully Differential ADC Driver, Bipolar | Y32: HVSSOP|8, SOIC|8 | Z32: 150MHz, Fully Differential Input/Output High Slew Rate Amplifier With Shutdown
A33: THS4150@30V | B33: 1 | C33: 17.5 | D33: 15 | E33: 33 | F33: 1 | G33: 150 | H33: 150 | I33: 150 | J33: 650 | K33: 7.6 | L33: 1.78 | M33: 7 | N33: 15000 | O33: 1.5 | P33: 1.5 | Q33: 3 | R33: 3 | S33: 3.4 | T33: 3.4 | U33: 85 | V33: -40 to 85, 0 to 70 | W33: https://www.ti.com/product/THS4150 | X33: Fully Differential ADC Driver, Bipolar | Y33: HVSSOP|8, SOIC|8 | Z33: 150MHz, Fully Differential Input/Output High Slew Rate Amplifier With Shutdown
A34: THS4151@5V | B34: 1 | C34: 15.8 | D34: 4 | E34: 10 | F34: 1 | G34: 150 | H34: 150 | I34: 150 | J34: 650 | K34: 7.6 | L34: 1.78 | M34: 7 | N34: 15000 | O34: 1.5 | P34: 1.5 | Q34: 1 | R34: 1 | S34: 1.2 | T34: 1.2 | U34: 45 | V34: 0 to 70, -40 to 85 | W34: https://www.ti.com/product/THS4151 | X34: Fully Differential ADC Driver, Bipolar | Y34: HVSSOP|8, SOIC|8, VSSOP|8 | Z34: 150MHz, Fully Differential Input/Output High Slew Rate Amplifier
A35: THS4151@10V | B35: 1 | C35: 15.8 | D35: 5 | E35: 25 | F35: 1 | G35: 150 | H35: 150 | I35: 150 | J35: 650 | K35: 7.6 | L35: 1.78 | M35: 7 | N35: 15000 | O35: 1.5 | P35: 1.5 | Q35: 2 | R35: 2 | S35: 1.3 | T35: 1.3 | U35: 60 | V35: 0 to 70, -40 to 85 | W35: https://www.ti.com/product/THS4151 | X35: Fully Differential ADC Driver, Bipolar | Y35: HVSSOP|8, SOIC|8, VSSOP|8 | Z35: 150MHz, Fully Differential Input/Output High Slew Rate Amplifier
A36: THS4151@30V | B36: 1 | C36: 17.5 | D36: 15 | E36: 33 | F36: 1 | G36: 150 | H36: 150 | I36: 150 | J36: 650 | K36: 7.6 | L36: 1.78 | M36: 7 | N36: 15000 | O36: 1.5 | P36: 1.5 | Q36: 3 | R36: 3 | S36: 3.4 | T36: 3.4 | U36: 85 | V36: 0 to 70, -40 to 85 | W36: https://www.ti.com/product/THS4151 | X36: Fully Differential ADC Driver, Bipolar | Y36: HVSSOP|8, SOIC|8, VSSOP|8 | Z36: 150MHz, Fully Differential Input/Output High Slew Rate Amplifier
A37: THS4500 | B37: 1 | C37: 23 | D37: 4.5 | E37: 15 | F37: 1 | G37: 220 | H37: 370 | I37: 300 | J37: 2800 | K37: 7 | L37: 1.7 | M37: 7 | N37: 4.6 | O37: -0.4 | P37: 2.7 | Q37: 1.3 | R37: 1.3 | S37: 1.2 | T37: 1.2 | U37: 120 | V37: -40 to 85, 0 to 70 | W37: https://www.ti.com/product/THS4500 | X37: Fully Differential ADC Driver, Bipolar | Y37: HVSSOP|8, SOIC|8, VSSOP|8 | Z37: 15V, High-Speed Fully Differential Amplifier with power-down
A38: THS4501 | B38: 1 | C38: 23 | D38: 4.5 | E38: 15 | F38: 1 | G38: 220 | H38: 370 | I38: 300 | J38: 2800 | K38: 7 | L38: 1.7 | M38: 7 | N38: 4.6 | O38: -0.4 | P38: 2.7 | Q38: 1.3 | R38: 1.3 | S38: 1.2 | T38: 1.2 | U38: 120 | V38: -40 to 85, 0 to 70 | W38: https://www.ti.com/product/THS4501 | X38: Fully Differential ADC Driver, Bipolar | Y38: HVSSOP|8, SOIC|8, VSSOP|8 | Z38: High-Speed Fully Differential Amplifier, +/-5 V
A39: THS4503 | B39: 1 | C39: 23 | D39: 4.5 | E39: 15 | F39: 1 | G39: 220 | H39: 370 | I39: 300 | J39: 2800 | K39: 6.8 | L39: 1.7 | M39: 4 | N39: 4.6 | O39: 1.3 | P39: 1.3 | Q39: 1.3 | R39: 1.3 | S39: 1.2 | T39: 1.2 | U39: 120 | V39: 0 to 70, -40 to 85 | W39: https://www.ti.com/product/THS4503 | X39: Fully Differential ADC Driver, Bipolar | Y39: HVSSOP|8, SOIC|8, VSSOP|8 | Z39: High-Speed Fully-Differential Amplifiers
A40: THS4504 | B40: 1 | C40: 16 | D40: 4.5 | E40: 15 | F40: 1 | G40: 250 | H40: 260 | I40: 210 | J40: 1800 | K40: 8 | L40: 2 | M40: 7 | N40: 4 | O40: -0.4 | P40: 2.7 | Q40: 1.3 | R40: 1.3 | S40: 1.2 | T40: 1.2 | U40: 130 | V40: -40 to 85 | W40: https://www.ti.com/product/THS4504 | X40: Fully Differential ADC Driver, Bipolar | Y40: HVSSOP|8, SOIC|8, VSSOP|8 | Z40: Wideband, Low Distortion Fully Differential Amplifier with Shutdown
A41: THS4505 | B41: 1 | C41: 16 | D41: 4.5 | E41: 15 | F41: 1 | G41: 250 | H41: 260 | I41: 210 | J41: 1800 | K41: 8 | L41: 2 | M41: 7 | N41: 4 | O41: -0.4 | P41: 2.7 | Q41: 1.3 | R41: 1.3 | S41: 1.2 | T41: 1.2 | U41: 130 | V41: -40 to 85 | W41: https://www.ti.com/product/THS4505 | X41: Fully Differential ADC Driver, Bipolar | Y41: HVSSOP|8, SOIC|8, VSSOP|8 | Z41: Wideband, Low-Distortion Fully Differential Amplifier
A42: THS4508 | B42: 1 | C42: 39.2 | D42: 3.75 | E42: 5.25 | F42: 2 | G42: 1500 | H42: 2000 | I42: 3000 | J42: 6400 | K42: 2.3 | L42: 2.9 | M42: 4 | N42: 8000 | O42: -0.3 | P42: 1.2 | Q42: 1.25 | R42: 1.25 | S42: 1.3 | T42: 1.3 | U42: 96 | V42: -40 to 85 | W42: https://www.ti.com/product/THS4508 | X42: Fully Differential ADC Driver, Bipolar | Y42: VQFN|16 | Z42: Wideband Fully Differential Amplifier
A43: THS4509 | B43: 1 | C43: 37.7 | D43: 3 | E43: 5.25 | F43: 2 | G43: 1500 | H43: 2000 | I43: 3000 | J43: 6600 | K43: 1.9 | L43: 2.2 | M43: 4 | N43: 8000 | O43: 1.2 | P43: 1.2 | Q43: 1 | R43: 1 | S43: 1.3 | T43: 1.3 | U43: 96 | V43: -40 to 85 | W43: https://www.ti.com/product/THS4509 | X43: Fully Differential ADC Driver, Bipolar | Y43: VQFN|16 | Z43: 1.9-GHz, Wideband, Low-Noise, Low-Distortion, Fully-Differential Amplifier
A44: THS4511 | B44: 1 | C44: 39.2 | D44: 3.75 | E44: 5.25 | F44: 1 | G44: 1350 | H44: 1600 | I44: 2000 | J44: 4900 | K44: 2 | L44: 1.5 | M44: 4 | N44: 8000 | O44: -0.3 | P44: 2.7 | Q44: 1.25 | R44: 1.25 | S44: 1.3 | T44: 1.3 | U44: 96 | V44: -40 to 85 | W44: https://www.ti.com/product/THS4511 | X44: Fully Differential ADC Driver, Bipolar | Y44: VQFN|16 | Z44: 1.6-GHz, unity-gain stable, wideband, low-noise, low distortion fully differential amplifier
A45: THS4513 | B45: 1 | C45: 37.7 | D45: 3 | E45: 5.5 | F45: 1 | G45: 1400 | H45: 1600 | I45: 2800 | J45: 5100 | K45: 2.2 | L45: 1.7 | M45: 4 | N45: 8000 | O45: 1.1 | P45: 1.1 | Q45: 1 | R45: 1 | S45: 1.3 | T45: 1.3 | U45: 96 | V45: -40 to 85 | W45: https://www.ti.com/product/THS4513 | X45: Fully Differential ADC Driver, Bipolar | Y45: VQFN|16 | Z45: 1.6-GHz, min gain 1-V/V, low-noise, low distortion fully differential amplifier
A46: THS4520 | B46: 1 | C46: 14.2 | D46: 3 | E46: 5.25 | F46: 1 | G46: 132 | H46: 620 | I46: 1200 | J46: 570 | K46: 2 | L46: 2 | M46: 2.5 | N46: 6500 | O46: 1.2 | P46: 0.75 | Q46: 1 | R46: 1 | S46: 1.2 | T46: 0.55 | U46: 105 | V46: -40 to 85 | W46: https://www.ti.com/product/THS4520 | X46: Fully Differential ADC Driver, Bipolar | Y46: VQFN|16 | Z46: Rail-to-Rail Output Wideband Fully Differential Amplifier
A47: THS4521 | B47: 1 | C47: 1.14 | D47: 2.5 | E47: 5.5 | F47: 1 | G47: 145 | H47: 145 | I47: 95 | J47: 490 | K47: 4.6 | L47: 0.6 | M47: 2 | N47: 650 | O47: -0.1 | P47: 1.4 | Q47: 1 | R47: 1 | S47: 0.15 | T47: 0.3 | U47: 55 | V47: -40 to 85 | W47: https://www.ti.com/product/THS4521 | X47: Fully Differential ADC Driver, Bipolar | Y47: SOIC|8, VSSOP|8 | Z47: Very low power rail-to-rail output fully differential amplifier
A48: THS4522 | B48: 2 | C48: 1.14 | D48: 2.5 | E48: 5.5 | F48: 1 | G48: 145 | H48: 145 | I48: 95 | J48: 490 | K48: 4.6 | L48: 0.6 | M48: 2 | N48: 650 | O48: -0.1 | P48: 1.4 | Q48: 1 | R48: 1 | S48: 0.15 | T48: 0.3 | U48: 55 | V48: -40 to 85 | W48: https://www.ti.com/product/THS4522 | X48: Fully Differential ADC Driver, Bipolar | Y48: TSSOP|16 | Z48: Very low power dual channel rail-to-rail output fully differential amplifier
A49: THS4524 | B49: 4 | C49: 1.14 | D49: 2.5 | E49: 5.5 | F49: 1 | G49: 145 | H49: 145 | I49: 95 | J49: 490 | K49: 4.6 | L49: 0.6 | M49: 2 | N49: 650 | O49: -0.1 | P49: 1.4 | Q49: 1 | R49: 1 | S49: 0.15 | T49: 0.3 | U49: 55 | V49: -40 to 85 | W49: https://www.ti.com/product/THS4524 | X49: Fully Differential ADC Driver, Bipolar | Y49: TSSOP|38 | Z49: Very low power quad channel rail-to-rail output fully differential amplifier
A50: THS4531 | B50: 1 | C50: 0.25 | D50: 2.5 | E50: 5.5 | F50: 1 | G50: 34 | H50: 36 | I50: 30 | J50: 220 | K50: 10 | L50: 0.25 | M50: 1 | N50: 210 | O50: 0 | P50: 1.2 | Q50: 0.95 | R50: 1 | S50: 0.2 | T50: 0.2 | U50: 26 | V50: -40 to 125 | W50: https://www.ti.com/product/THS4531 | X50: Fully Differential ADC Driver, Bipolar | Y50: QFN|10, SOIC|8, VSSOP|8 | Z50: Ultra low power 0.25mA, RRO, fully differential amplifier
A51: THS4531A | B51: 1 | C51: 0.25 | D51: 2.5 | E51: 5.5 | F51: 1 | G51: 34 | H51: 36 | I51: 27 | J51: 220 | K51: 10 | L51: 0.25 | M51: 0.4 | N51: 250 | O51: 0 | P51: 1.2 | Q51: 0.95 | R51: 1 | S51: 0.2 | T51: 0.2 | U51: 26 | V51: -40 to 125 | W51: https://www.ti.com/product/THS4531A | X51: Fully Differential ADC Driver, Bipolar | Y51: QFN|10, SOIC|8, VSSOP|8 | Z51: Ultra Low Power, RRO, Fully-Differential Amplifier
A52: THS4532 | B52: 2 | C52: 0.25 | D52: 2.5 | E52: 5.5 | F52: 1 | G52: 34 | H52: 36 | I52: 27 | J52: 220 | K52: 10 | L52: 0.25 | M52: 0.4 | N52: 250 | O52: 0 | P52: 1.2 | Q52: 0.95 | R52: 1 | S52: 0.2 | T52: 0.25 | U52: 26 | V52: -40 to 125 | W52: https://www.ti.com/product/THS4532 | X52: Fully Differential ADC Driver, Bipolar | Y52: TSSOP|16 | Z52: Dual, Ultra low power 0.25mA, RRO, fully differential amplifier
A53: THS4541 | B53: 1 | C53: 10.1 | D53: 2.7 | E53: 5.4 | F53: 1 | G53: 340 | H53: 620 | I53: 850 | J53: 1500 | K53: 2.2 | L53: 1.9 | M53: 0.45 | N53: 10000 | O53: -0.1 | P53: 1.3 | Q53: 0.88 | R53: 1.1 | S53: 0.25 | T53: 0.25 | U53: 100 | V53: -40 to 125 | W53: https://www.ti.com/product/THS4541 | X53: Fully Differential ADC Driver, Bipolar | Y53: QFN|10, VQFN|16 | Z53: High-Speed Differential I/O Amplifier
A54: THS4551 | B54: 1 | C54: 1.35 | D54: 2.7 | E54: 5.4 | F54: 1 | G54: 75 | H54: 150 | I54: 135 | J54: 220 | K54: 3.3 | L54: 0.5 | M54: 0.175 | N54: 1500 | O54: -0.1 | P54: 1.2 | Q54: 0.55 | R54: 1.2 | S54: 0.23 | T54: 0.23 | U54: 45 | V54: -40 to 125 | W54: https://www.ti.com/product/THS4551 | X54: Fully Differential ADC Driver, Bipolar | Y54: QFN|10, VQFN|16, VSSOP|8 | Z54: Low Noise, Precision, 150MHz, Fully Differential Amplifier
A55: THS4552 | B55: 2 | C55: 1.37 | D55: 2.7 | E55: 5.4 | F55: 1 | G55: 75 | H55: 150 | I55: 135 | J55: 220 | K55: 3.3 | L55: 0.5 | M55: 0.265 | N55: 1500 | O55: -0.1 | P55: 1.2 | Q55: 0.55 | R55: 1.2 | S55: 0.23 | T55: 0.23 | U55: 65 | V55: -40 to 125 | W55: https://www.ti.com/product/THS4552 | X55: Fully Differential ADC Driver, Bipolar | Y55: TSSOP|16, WQFN|24 | Z55: Dual Channel, Low-Noise, Precision, 150-MHz, Fully Differential Amplifier
A56: THS4561 | B56: 1 | C56: 0.78 | D56: 2.85 | E56: 12.6 | F56: 1 | G56: 20 | H56: 60 | I56: 60 | J56: 230 | K56: 4 | L56: 0.35 | M56: 0.25 | N56: 600 | O56: 0 | P56: 1.2 | Q56: 0.5 | R56: 1.2 | S56: 0.25 | T56: 0.25 | U56: 27 | V56: -40 to 125 | W56: https://www.ti.com/product/THS4561 | X56: Fully Differential ADC Driver, Bipolar | Y56: QFN|10, VQFN|16, VSSOP|8 | Z56: Low-power, 60-MHz, wide-supply-range fully differential amplifier
A57: THS4567 | B57: 1 | C57: 2 | D57: 3.3 | E57: 6 | F57: 10 | G57: 28 | H57: 70 | I57: 220 | J57: 500 | K57: 4.2 | L57: 0.01 | M57: 10 | N57: 0.02 | O57: 0.2 | P57: 1.85 | Q57: 1 | R57: 1 | S57: 0.25 | T57: 0.25 | U57: 20 | V57: -40 to 125 | W57: https://www.ti.com/product/THS4567 | X57: Fully Differential ADC Driver, High Input Impedance | Y57: QFN|10 | Z57: 220-MHz CMOS input fully differential amplifier with VICM and VOCM control
A58: THS770006 | B58: 1 | C58: 100 | D58: 4.75 | E58: 5.25 | F58: 2 | G58: 780 | H58: 2400 | I58: 2400 | J58: 3200 | K58: 1.7 | L58: 0 | M58: 5 | N58: 0 | O58: 2.25 | P58: 2.25 | Q58: 2.25 | R58: 2.25 | S58: 1.4 | T58: 1.36 | U58: 80 | V58: -40 to 85 | W58: https://www.ti.com/product/THS770006 | X58: Fully Differential ADC Driver, Fixed Gain/Buffer, Bipolar | Y58: VQFN|24 | Z58: High-Speed Fully Differential ADC Driver Amplifier with +6dB Fixed Gain
